fUSD/lending_fUSD_20251102
["ID","MTS","AMOUNT","RATE_DAILY","PERIOD"]
[392857021,1762069627649,500.0,0.00014356,2]
[392857022,1762069633982,389.0,0.00014664,2]
[392857024,1762069689899,204.80140556,0.00014765,2]
[392857025,1762069746288,221.66766337,0.00014748,2]
[392857026,1762069762261,1591.73,0.00013994,2]
[392857027,1762069788557,150.0,0.00015,120]
[392857028,1762069799072,500.0,0.00014356,2]
[392857029,1762069803193,1061.11764269,0.00030137,120]
[392857030,1762069803554,190.0,0.00029449,120]
[392857032,1762069832316,-685.08971641,0.00014767,2]
[392857035,1762069832362,-408.2574532,0.00014767,2]
[392857036,1762069832375,-323.3292545,0.00014767,2]
[392857037,1762069832413,-8.32357589,0.00014767,2]
[392857038,1762069832423,-239.84119403,0.00014771,2]
[392857039,1762069832433,-250.0,0.00014772,2]
[392857040,1762069832443,-501.83523008,0.00014778,2]
[392857041,1762069832458,-663.06548657,0.00014778,2]
[392857042,1762069832469,-35.09928335,0.00014778,2]
[392857043,1762069832660,-300.0,0.00014778,2]
[392857044,1762069832671,-1200.0,0.00014778,2]
[392857045,1762069832681,-300.0,0.00014778,2]
[392857046,1762069832690,-150.0,0.00014779,2]
[392857047,1762069832699,-722.20711484,0.0001478,2]
[392857048,1762069832709,-666.04570032,0.0001478,2]
[392857049,1762069832723,-295.99999997,0.0001478,2]
[392857050,1762069832761,-14434.47100761,0.0001478,2]
[392857051,1762069832773,-4557.2419921,0.0001478,2]
[392857052,1762069832783,-242.3808,0.0001478,2]
[392857053,1762069832792,-451.6941,0.0001478,2]
[392857054,1762069832803,-318.98037411,0.0001478,2]
[392857055,1762069832812,-1260.31953742,0.0001478,2]
[392857056,1762069832822,-2500.0,0.0001478,2]
[392857057,1762069832831,-318.98037402,0.00014793,2]
[392857058,1762069832840,-1260.31953734,0.00014793,2]
[392857059,1762069832849,-318.98037402,0.00014807,2]
[392857061,1762069832859,-1260.31953734,0.00014807,2]
[392857063,1762069832868,-356.0,0.0001481,2]
[392857065,1762069832878,-150.0,0.00014813,2]
[392857067,1762069832887,-318.98037402,0.0001482,2]
[392857069,1762069832897,-1260.31953734,0.0001482,2]
[392857071,1762069832907,-389.0,0.00014832,2]
[392857073,1762069832916,-318.98037402,0.00014833,2]
[392857075,1762069832926,-1260.31953734,0.00014833,2]
[392857077,1762069832935,-1000.0,0.00014845,2]
[392857079,1762069832943,-318.98037402,0.00014847,2]
[392857081,1762069832953,-1260.31953734,0.00014847,2]
[392857083,1762069832962,-529.70213,0.0001485,2]
[392857085,1762069832971,-318.98037402,0.0001486,2]
[392857087,1762069832981,-1260.31953734,0.0001486,2]
[392857089,1762069832991,-6502.64,0.0001487,2]
[392857091,1762069833000,-1595.46,0.00014871,2]
[392857093,1762069833010,-620.0,0.00014871,2]
[392857095,1762069833022,-307.81342059,0.00014871,2]
[392857096,1762069833031,-151.0,0.00014871,2]
[392857098,1762069833041,-159.23727129,0.00014871,2]
[392857100,1762069833051,-496.47127164,0.00014871,2]
[392857102,1762069833061,-151.0,0.00014871,2]
[392857104,1762069833070,-204.54206841,0.00014871,2]
[392857106,1762069833080,-151.0,0.00014871,2]
[392857109,1762069833090,-151.0,0.00014871,2]
[392857110,1762069833103,-151.0,0.00014871,2]
[392857112,1762069833113,-151.0,0.00014871,2]
[392857115,1762069833123,-151.0,0.00014871,2]
[392857117,1762069833133,-151.0,0.00014871,2]
[392857118,1762069833142,-151.0,0.00014871,2]
[392857120,1762069833152,-152.0,0.00014871,2]
[392857122,1762069833161,-500.0,0.00014873,2]
[392857124,1762069833171,-501.43411624,0.00014873,2]
[392857126,1762069833180,-470.29522732,0.00014873,2]
[392857129,1762069833189,-500.0,0.00014873,2]
[392857130,1762069833198,-254.95328939,0.00014873,2]
[392857133,1762069833210,-149.68220809,0.00014873,2]
[392857135,1762069833219,-500.0,0.00014873,2]
[392857136,1762069833227,-500.0,0.00014873,2]
[392857139,1762069833237,-157.26812313,0.00014873,2]
[392857140,1762069833247,-505.08327487,0.00014873,2]
[392857142,1762069833255,-501.03217744,0.00014873,2]
[392857144,1762069833264,-500.0,0.00014873,2]
[392857146,1762069833274,-500.0,0.00014873,2]
[392857148,1762069833283,-500.0,0.00014873,2]
[392857150,1762069833292,-500.0,0.00014873,2]
[392857152,1762069833301,-500.0,0.00014873,2]
[392857154,1762069833310,-224.78415886,0.00014873,2]
[392857156,1762069833319,-606.20059403,0.00014873,2]
[392857158,1762069833328,-500.0,0.00014873,2]
[392857160,1762069833337,-500.0,0.00014873,2]
[392857162,1762069833346,-500.0,0.00014873,2]
[392857164,1762069833356,-500.0,0.00014873,2]
[392857166,1762069833365,-318.98037402,0.00014873,2]
[392857168,1762069833375,-1260.31953734,0.00014873,2]
[392857170,1762069833384,-500.0,0.00014879,2]
[392857172,1762069833394,-500.0,0.00014879,2]
[392857174,1762069833403,-500.0,0.00014879,2]
[392857176,1762069833413,-500.0,0.00014879,2]
[392857178,1762069833422,-500.0,0.00014879,2]
[392857180,1762069833431,-500.0,0.00014879,2]
[392857182,1762069833440,-584.45083739,0.00014879,2]
[392857184,1762069833450,-500.0,0.00014879,2]
[392857186,1762069833460,-582.01789818,0.00014879,2]
[392857188,1762069833469,-500.0,0.00014879,2]
[392857190,1762069833478,-500.0,0.00014879,2]
[392857192,1762069833487,-585.36696196,0.00014879,2]
[392857194,1762069833497,-500.0,0.00014879,2]
[392857196,1762069833507,-500.0,0.00014879,2]
[392857198,1762069833517,-500.0,0.00014879,2]
[392857200,1762069833527,-361.08441482,0.00014879,2]
[392857202,1762069833538,-500.0,0.00014879,2]
[392857204,1762069833547,-500.0,0.00014879,2]
[392857205,1762069833556,-150.0,0.00014879,2]
[392857206,1762069833566,-150.0,0.00014879,2]
[392857207,1762069833575,-150.0,0.00014879,2]
[392857208,1762069833584,-150.0,0.00014879,2]
[392857209,1762069833594,-150.0,0.00014879,2]
[392857210,1762069833604,-150.0,0.00014879,2]
[392857211,1762069833613,-151.95905645,0.00014879,2]
[392857212,1762069833622,-150.0,0.00014879,2]
[392857213,1762069833632,-150.0,0.00014879,2]
[392857214,1762069833641,-500.0,0.00014879,2]
[392857215,1762069833650,-500.0,0.00014879,2]
[392857216,1762069833660,-52943.810674,0.0001488,2]
[392857217,1762069833671,-608.96845503,0.0001488,2]
[392857218,1762069833682,-465.9953285,0.0001488,2]
[392857219,1762069833694,-4824.5656546,0.0001488,2]
[392857220,1762069833709,-1840.29844284,0.0001488,2]
[392857227,1762069838397,-394.865,0.0001488,2]
[392857228,1762069838408,-4695.43136942,0.0001488,2]
[392857232,1762069840588,-5639.45554211,0.0001488,2]
[392857257,1762069843571,-18841.78976714,0.0001488,2]
[392857309,1762069891976,683.88255976,0.00014029,2]
[392857311,1762069892005,483.37744024,0.00014029,2]
[392857346,1762069962209,200.0,0.00013947,2]
[392857348,1762069970474,500.0,0.00014356,2]
[392857349,1762069977563,156.36,6.994e-05,2]
[392857350,1762069977864,156.36,8.393e-05,2]
[392857351,1762069978074,156.36,9.792e-05,2]
[392857352,1762069978215,150.0,0.00015,120]
[392857353,1762069978260,156.36,0.0001119,2]
[392857354,1762069978465,156.36,0.00012589,2]
[392857355,1762069978661,156.36,0.00013988,2]
[392857357,1762069999906,500.0,0.00025957,120]
[392857358,1762070000672,500.0,0.00027469,120]
[392857359,1762070000829,500.0,0.00028981,120]
[392857361,1762070054420,-300.0,0.00014779,2]
[392857362,1762070054443,-150.0,0.00014779,2]
[392857363,1762070054465,-300.0,0.00014779,2]
[392857364,1762070054668,-2500.0,0.0001478,2]
[392857365,1762070054697,-10750.0,0.0001478,2]
[392857366,1762070071321,934.07305528,0.000147,2]
[392857367,1762070088254,1000.0,0.0001399,2]
[392857368,1762070101109,999.0,0.00013984,3]
[392857370,1762070102413,-300.0,0.00014778,2]
[392857371,1762070102459,-1200.0,0.00014778,2]
[392857372,1762070102504,-300.0,0.00014778,2]
[392857373,1762070102557,-500.0,0.00014779,2]
[392857374,1762070102607,-500.0,0.00014779,2]
[392857375,1762070102652,-500.0,0.00014779,2]
[392857376,1762070102694,-500.0,0.00014779,2]
[392857377,1762070102737,-500.0,0.00014779,2]
[392857378,1762070102778,-500.0,0.00014779,2]
[392857379,1762070102816,-500.0,0.00014779,2]
[392857380,1762070102856,-500.0,0.00014779,2]
[392857381,1762070102895,-500.0,0.00014779,2]
[392857382,1762070102938,-500.0,0.00014779,2]
[392857383,1762070102976,-500.0,0.00014779,2]
[392857384,1762070103016,-500.0,0.00014779,2]
[392857385,1762070103068,-200.0,0.00014779,2]
[392857414,1762070134186,-300.0,0.00014779,2]
[392857415,1762070134219,-500.0,0.00014779,2]
[392857416,1762070134248,-500.0,0.00014779,2]
[392857417,1762070134277,-500.0,0.00014779,2]
[392857418,1762070134307,-500.0,0.00014779,2]
[392857419,1762070134336,-500.0,0.00014779,2]
[392857420,1762070134366,-500.0,0.00014779,2]
[392857421,1762070134394,-500.0,0.00014779,2]
[392857422,1762070134421,-500.0,0.00014779,2]
[392857423,1762070134449,-500.0,0.00014779,2]
[392857424,1762070134478,-408.53669619,0.00014779,2]
[392857425,1762070134506,-500.0,0.00014779,2]
[392857426,1762070134531,-14291.46330381,0.0001478,2]
[392857427,1762070142401,-200.0,0.00014779,2]
[392857428,1762070142429,-29800.0,0.0001478,2]
[392857429,1762070144694,252.06390754,0.000147,2]
[392857430,1762070149647,252.06390746,0.00014722,2]
[392857431,1762070152178,-50600.0,0.0001478,2]
[392857432,1762070154637,252.06390746,0.00014744,2]
[392857433,1762070166918,150.0,0.00015,120]
[392857434,1762070171792,177.7,0.00011116,2]
[392857435,1762070175674,-252.06390746,0.00014767,2]
[392857436,1762070175697,-612.84786107,0.00014779,2]
[392857437,1762070175723,-63121.80689619,0.0001478,2]
[392857438,1762070175748,-252.06390746,0.00014789,2]
[392857439,1762070175947,-1021.0,0.000148,2]
[392857440,1762070175973,-252.06390746,0.00014811,2]
[392857441,1762070176000,-252.06390746,0.00014833,2]
[392857442,1762070176029,-813.49942,0.0001485,2]
[392857443,1762070176054,-3622.5901929,0.00014861,2]
[392857444,1762070200791,5010.50778202,0.00013895,2]
[392857445,1762070200882,10000.01,0.00013895,2]
[392857446,1762070200974,4130.99221798,0.00013895,2]
[392857447,1762070231039,221.66766337,0.00014595,2]
[392857449,1762070234808,150.0,0.00013895,2]
[392857450,1762070235069,150.0,0.00013895,120]
[392857452,1762070301873,1395.67,0.00013917,2]
[392857453,1762070305684,245.95491169,0.00014356,2]
[392857455,1762070355867,150.0,0.00015,120]
[392857456,1762070390087,1038.04597899,0.00014356,120]
[392857458,1762070396172,2563.44,0.00013917,2]
[392857470,1762070530478,529.70214,0.0001474,2]
[392857471,1762070531523,762.58306696,0.0001475,2]
[392857472,1762070531616,50.91635304,0.0001475,2]
[392857473,1762070543708,150.0,0.00015,120]
[392857474,1762070544485,201.13,0.000147,2]
[392857475,1762070548692,168.0,0.00014536,2]
[392857476,1762070550510,150.0,0.000283,120]
[392857479,1762070600281,500.0,0.0002676,120]
[392857480,1762070600623,500.0,0.0002876,120]
[392857482,1762070625092,973.41560049,0.0001471,2]
[392857483,1762070630025,973.41560045,0.00014731,2]
[392857484,1762070630391,300.0,0.00030136,120]
[392857485,1762070635073,973.41560045,0.00014752,2]
[392857486,1762070640976,175.27760183,0.00030136,120]
[392857487,1762070651630,720.27,0.00013895,2]
[392857488,1762070689738,1651.0609,0.00014699,2]
[392857490,1762070730537,299.3,0.00015,120]
[392857491,1762070731745,150.0,0.00029103,120]
[392857492,1762070736691,221.66766337,0.00014708,2]
[392857494,1762070747003,168.0,0.00014514,2]
[392857495,1762070775038,166.66,0.00013699,2]
[392857496,1762070775472,166.66,0.00013864,2]
[392857497,1762070775676,166.66,0.00014029,2]
[392857498,1762070775856,166.66,0.00014194,2]
[392857499,1762070776059,166.66,0.0001436,2]
[392857500,1762070776280,166.66,0.00014525,2]
[392857506,1762070835010,529.70213,0.0001473,2]
[392857507,1762070835228,529.70213,0.0001473,2]
[392857508,1762070835368,529.70214,0.0001473,2]
[392857509,1762070836604,813.49942,0.0001473,2]
[392857510,1762070836783,496.1524622,0.0001476,2]
[392857511,1762070836898,317.3469578,0.0001476,2]
[392857513,1762070869229,200.0,0.00013895,2]
[392857514,1762070880467,250.0,0.00013826,2]
[392857515,1762070921626,166.66,0.00014312,2]
[392857519,1762071000593,2000.0,0.00030137,120]
[392857531,1762071031422,-500.0,0.0001477,2]
[392857533,1762071031432,-195.0,0.00014772,2]
[392857534,1762071031441,-195.0,0.00014774,2]
[392857535,1762071031451,-116.71433122,0.00014774,2]
[392857536,1762071031462,-133.28566878,0.00014774,2]
[392857537,1762071031471,-300.0,0.00014775,2]
[392857538,1762071031480,-233.12344677,0.00014778,2]
[392857539,1762071031490,-166.66,0.00014784,2]
[392857540,1762071031499,-1200.0,0.00014788,2]
[392857541,1762071031508,-3251.32,0.00014789,2]
[392857542,1762071031518,-1200.0,0.00014789,2]
[392857543,1762071031527,-242.0,0.00014789,2]
[392857544,1762071031536,-300.0,0.00014789,2]
[392857545,1762071031545,-239.84119403,0.00014789,2]
[392857546,1762071031554,-496.47127164,0.0001479,2]
[392857547,1762071031563,-620.0,0.0001479,2]
[392857548,1762071031573,-151.0,0.0001479,2]
[392857549,1762071031584,-2922.0848091,0.00014795,2]
[392857550,1762071031593,-4499.3913052,0.00014795,2]
[392857551,1762071031603,-150.0,0.00014797,2]
[392857552,1762071031612,-500.0,0.00014798,2]
[392857553,1762071031622,-599.94326063,0.00014798,2]
[392857554,1762071031631,-210.26414072,0.00014798,2]
[392857555,1762071031640,-191.34902484,0.00014798,2]
[392857556,1762071031649,-203.78386824,0.00014798,2]
[392857557,1762071031659,-500.0,0.00014798,2]
[392857558,1762071031669,-500.0,0.00014798,2]
[392857559,1762071031678,-236.7875517,0.00014798,2]
[392857560,1762071031688,-500.0,0.00014798,2]
[392857561,1762071031697,-500.0,0.00014798,2]
[392857562,1762071031710,-500.0,0.00014798,2]
[392857563,1762071031719,-241.884555,0.00014798,2]
[392857564,1762071031728,-500.0,0.00014798,2]
[392857565,1762071031737,-500.0,0.00014798,2]
[392857566,1762071031747,-500.0,0.00014798,2]
[392857567,1762071031757,-500.0,0.00014798,2]
[392857568,1762071031766,-500.0,0.00014798,2]
[392857570,1762071031776,-500.0,0.00014798,2]
[392857572,1762071031785,-500.0,0.00014798,2]
[392857574,1762071031794,-500.0,0.00014798,2]
[392857576,1762071031804,-500.0,0.00014798,2]
[392857577,1762071031813,-500.0,0.00014798,2]
[392857578,1762071031823,-500.0,0.00014798,2]
[392857580,1762071031832,-500.0,0.00014798,2]
[392857582,1762071031841,-500.0,0.00014798,2]
[392857584,1762071031850,-1578.41,0.00014798,2]
[392857586,1762071031860,-500.0,0.00014798,2]
[392857588,1762071031869,-154108.90875647,0.00014799,2]
[392857592,1762071031908,-4763.01368576,0.00014799,2]
[392857593,1762071031920,-716.26569835,0.00014799,2]
[392857594,1762071031931,-2867.08198722,0.00014799,2]
[392857595,1762071031943,-12082.464326,0.00014799,2]
[392857596,1762071031966,-4564.16748859,0.00014799,2]
[392857597,1762071032001,-804.57375123,0.00014799,2]
[392857602,1762071037546,-20123.37805366,0.00014799,2]
[392857603,1762071037644,-419.70215668,0.00014798,2]
[392857604,1762071037689,-80.29784332,0.00014798,2]
[392857605,1762071037699,-50977.3957035,0.00014799,2]
[392857617,1762071040530,-14160.60724922,0.00014799,2]
[392857618,1762071040544,-161.64712491,0.000148,2]
[392857619,1762071040558,-1591.65630973,0.00014824,2]
[392857620,1762071040572,-1591.65630967,0.00014832,2]
[392857621,1762071040587,-1591.65630967,0.00014841,2]
[392857622,1762071040601,-1591.65630967,0.00014849,2]
[392857623,1762071040614,-1591.65630967,0.00014858,2]
[392857624,1762071040628,-7331.7359326,0.00014861,2]
[392857625,1762071040643,-151.0,0.00014861,2]
[392857626,1762071040840,-1591.65630967,0.00014866,2]
[392857627,1762071040867,-1591.65630967,0.00014875,2]
[392857628,1762071040877,-500.0,0.00014879,2]
[392857629,1762071040886,-504.05356317,0.00014879,2]
[392857630,1762071040898,-500.0,0.00014879,2]
[392857631,1762071040907,-262.57277063,0.00014879,2]
[392857632,1762071040919,-237.42722937,0.00014879,2]
[392857633,1762071040928,-176.19093324,0.0001488,2]
[392857634,1762071040939,-323.80906676,0.0001488,2]
[392857635,1762071040949,-193.66278634,0.0001488,2]
[392857636,1762071041012,-336.03934366,0.0001488,2]
[392857637,1762071041021,-813.49943,0.0001488,2]
[392857638,1762071041031,-813.49942,0.0001488,2]
[392857639,1762071041041,-313.20520634,0.00014883,2]
[392857665,1762071042731,-151.0,0.00014883,2]
[392857666,1762071042742,-1278.45110333,0.00014883,2]
[392857667,1762071042751,-1591.65630967,0.00014892,2]
[392857668,1762071042761,-5822.63261867,0.000149,2]
[392857669,1762071042770,-186.07808268,0.000149,2]
[392857670,1762071042781,-1792.006,0.000149,2]
[392857671,1762071042790,-242.904,0.000149,2]
[392857672,1762071042799,-161.64712491,0.000149,2]
[392857673,1762071042808,-187.42131916,0.000149,2]
[392857674,1762071042817,-225.19715504,0.000149,2]
[392857675,1762071042827,-12489.68611968,0.000149,2]
[392857714,1762071045826,-464.96933906,0.000149,2]
[392857715,1762071045838,-4120.0,0.000149,2]
[392857716,1762071045893,-1036.00000006,0.000149,2]
[392857717,1762071045905,-317.45000261,0.000149,2]
[392857718,1762071046063,-2348.59431789,0.000149,2]
[392857742,1762071201466,527.283585,0.00025,120]
[392857747,1762071248201,221.66766337,0.00014529,2]
[392857748,1762071295527,410.0,0.0003,120]
[392857749,1762071296304,374.67684544,0.00030137,120]
[392857758,1762071376651,2662.93032649,0.0003,120]
[392857764,1762071448436,150.0,0.00013896,2]
[392857769,1762071468801,150.0,0.00013895,2]
[392857775,1762071493896,285.09815715,0.00014155,2]
[392857830,1762071683471,156.0,0.00027397,120]
[392857831,1762071701631,997.74,0.00013895,2]
[392857846,1762071798862,500.0,0.000268,120]
[392857858,1762071851434,221.66766337,0.00014681,2]
[392857864,1762071910113,884.29121281,0.0003,120]
[392857866,1762071918619,347.63,0.00013894,2]
[392857867,1762071919014,347.63,0.00014666,2]
[392857870,1762071949149,500.0,0.00013895,2]
[392857871,1762071952345,5844.56955831,0.0001399,2]
[392857872,1762071952447,6075.2095567,0.0001399,2]
[392857873,1762071960384,3924.8004433,8e-05,2]
[392857874,1762071960422,917.41218883,8e-05,2]
[392857900,1762072004093,1174.64424711,0.000145,2]
[392857901,1762072025605,607.46773911,0.0003,120]
[392857902,1762072025925,413.52721472,0.0002301,120]
[392857904,1762072061449,163.47908062,0.00027,120]
[392857906,1762072086224,658.87502431,0.0001439,2]
[392857907,1762072106626,395.92632805,0.000246,120]
[392857908,1762072119663,219.36232664,0.0003,120]
[392857909,1762072121868,180.07325336,0.0003,120]
[392857913,1762072167753,4323.27,0.000147,2]
[392857967,1762072231791,-395.669998,0.00014791,2]
[392857968,1762072231803,-177.180002,0.00014791,2]
[392857969,1762072231813,-233.12344677,0.00014791,2]
[392857970,1762072231823,-239.84119403,0.00014791,2]
[392857971,1762072231831,-300.0,0.00014792,2]
[392857972,1762072231841,-1200.0,0.00014793,2]
[392857973,1762072231850,-785.67958141,0.00014793,2]
[392857974,1762072231862,-414.32041859,0.00014793,2]
[392857975,1762072231872,-300.0,0.00014794,2]
[392857976,1762072231881,-242.0,0.00014794,2]
[392857977,1762072231890,-1750.761459,0.00014795,2]
[392857978,1762072231931,-511.71246314,0.00014795,2]
[392857981,1762072231988,-7436.60091136,0.00014795,2]
[392857982,1762072231998,-537.07760344,0.00014798,2]
[392857983,1762072232007,-10000.01,0.000148,2]
[392857985,1762072232016,-3458.05818392,0.000148,2]
[392857986,1762072232026,-315.3417703,0.00014813,2]
[392857987,1762072232035,-2922.0848091,0.00014813,2]
[392857988,1762072232045,-5883.3484722,0.00014813,2]
[392857989,1762072232054,-801.5159013,0.00014824,2]
[392857990,1762072232063,-152.41568192,0.00014824,2]
[392857991,1762072232073,-801.51590122,0.00014832,2]
[392857992,1762072232082,-150.0,0.0001484,2]
[392857993,1762072232091,-801.51590122,0.00014841,2]
[392857994,1762072232100,-801.51590122,0.00014849,2]
[392857995,1762072232109,-801.51590122,0.00014858,2]
[392857996,1762072232119,-801.51590122,0.00014866,2]
[392857997,1762072232128,-801.51590122,0.00014875,2]
[392857998,1762072232137,-801.51590122,0.00014883,2]
[392857999,1762072232147,-620.0,0.00014891,2]
[392858000,1762072232156,-496.47127164,0.00014891,2]
[392858001,1762072232166,-151.0,0.00014891,2]
[392858002,1762072232175,-801.51590122,0.00014892,2]
[392858003,1762072232184,-500.0,0.00014899,2]
[392858004,1762072232193,-500.0,0.00014899,2]
[392858005,1762072232203,-500.0,0.00014899,2]
[392858006,1762072232212,-500.0,0.00014899,2]
[392858007,1762072232221,-500.0,0.00014899,2]
[392858008,1762072232231,-500.0,0.00014899,2]
[392858009,1762072232240,-374.1884555,0.00014899,2]
[392858010,1762072232249,-500.0,0.00014899,2]
[392858011,1762072232258,-500.0,0.00014899,2]
[392858012,1762072232268,-1433.604,0.00014899,2]
[392858013,1762072232277,-194.324,0.00014899,2]
[392858014,1762072232291,-236.7875517,0.00014899,2]
[392858015,1762072232300,-500.0,0.00014899,2]
[392858016,1762072232309,-500.0,0.00014899,2]
[392858017,1762072232319,-500.0,0.00014899,2]
[392858018,1762072232330,-500.0,0.00014899,2]
[392858019,1762072232339,-500.0,0.00014899,2]
[392858020,1762072232348,-500.0,0.00014899,2]
[392858021,1762072232359,-500.0,0.00014899,2]
[392858022,1762072232368,-500.0,0.00014899,2]
[392858023,1762072232378,-167.6960995,0.00014899,2]
[392858024,1762072232387,-500.0,0.00014899,2]
[392858025,1762072232397,-500.0,0.00014899,2]
[392858026,1762072232406,-500.0,0.00014899,2]
[392858027,1762072232416,-1578.41,0.00014899,2]
[392858028,1762072232425,-159.16563103,0.00014899,2]
[392858029,1762072232435,-159.16563096,0.00014899,2]
[392858030,1762072232445,-159.16563096,0.00014899,2]
[392858031,1762072232455,-159.16563096,0.00014899,2]
[392858032,1762072232464,-159.16563096,0.00014899,2]
[392858034,1762072232473,-159.16563096,0.000149,2]
[392858035,1762072232483,-159.16563096,0.000149,2]
[392858036,1762072232491,-159.16563096,0.000149,2]
[392858038,1762072232501,-159.16563096,0.000149,2]
[392858039,1762072232510,-55913.7261934,0.000149,2]
[392858040,1762072232522,-11460.12553765,0.000149,2]
[392858042,1762072232532,-151.0,0.000149,2]
[392858043,1762072232542,-159.49549944,0.000149,2]
[392858045,1762072232551,-626.29904154,0.000149,2]
[392858046,1762072232561,-159.16563096,0.000149,2]
[392858047,1762072232570,-210.97097766,0.000149,2]
[392858048,1762072232579,-801.51590122,0.000149,2]
[392858050,1762072232589,-150.13143668,0.000149,2]
[392858051,1762072232598,-916.69390367,0.000149,2]
[392858053,1762072232607,-1625.66,0.00014914,2]
[392858054,1762072232617,-356.0,0.00014914,2]
[392858055,1762072232626,-2104.0,0.00014919,2]
[392858056,1762072232635,-419.96028244,0.00014923,2]
[392858058,1762072232644,-500.0,0.00014923,2]
[392858059,1762072232653,-500.0,0.00014923,2]
[392858060,1762072232663,-192.64870776,0.00014923,2]
[392858062,1762072232671,-179.98297819,0.00014923,2]
[392858063,1762072232681,-511.13516047,0.00014923,2]
[392858064,1762072232690,-150.0,0.00014923,2]
[392858066,1762072232699,-150.0,0.00014923,2]
[392858067,1762072232709,-150.0,0.00014923,2]
[392858068,1762072232718,-150.0,0.00014923,2]
[392858070,1762072232727,-626.08232765,0.00014923,2]
[392858071,1762072232736,-500.0,0.00014923,2]
[392858078,1762072232745,-519.19897658,0.00014923,2]
[392858079,1762072232895,-500.0,0.00014923,2]
[392858080,1762072232905,-500.0,0.00014923,2]
[392858082,1762072232914,-375.46061368,0.00014923,2]
[392858083,1762072232924,-500.0,0.00014923,2]
[392858084,1762072232934,-389.85802715,0.00014923,2]
[392858086,1762072232943,-500.0,0.00014923,2]
[392858087,1762072232952,-356.0,0.00014924,2]
[392858088,1762072232963,-26417.87915214,0.00014924,2]
[392858090,1762072232974,-63929.66015568,0.00014924,2]
[392858091,1762072232986,-107184.80368896,0.00014924,2]
[392858093,1762072232996,-300.0,0.00014924,2]
[392858094,1762072233005,-310.819173,0.00014924,2]
[392858095,1762072233015,-500.0,0.00014932,2]
[392858096,1762072233023,-416.0,0.00014932,2]
[392858098,1762072233033,-2104.0,0.00014947,2]
[392858099,1762072233042,-477.45087779,0.00014955,2]
[392858100,1762072233051,-389.0,0.00014957,2]
[392858102,1762072233060,-502.04782026,0.00014973,2]
[392858103,1762072233070,-500.0,0.00014973,2]
[392858104,1762072233079,-554.47041519,0.00014973,2]
[392858106,1762072233088,-500.0,0.00014973,2]
[392858107,1762072233098,-500.0,0.00014973,2]
[392858108,1762072233107,-509.21707707,0.00014973,2]
[392858110,1762072233117,-500.0,0.00014973,2]
[392858111,1762072233126,-500.0,0.00014973,2]
[392858112,1762072233136,-500.0,0.00014973,2]
[392858113,1762072233145,-500.0,0.00014973,2]
[392858114,1762072233154,-500.0,0.00014973,2]
[392858115,1762072233163,-500.0,0.00014973,2]
[392858116,1762072233171,-500.0,0.00014973,2]
[392858117,1762072233180,-500.68466245,0.00014973,2]
[392858118,1762072233189,-102.15865985,0.00014973,2]
[392858192,1762072237597,-399.67273582,0.00014973,2]
[392858193,1762072237607,-88.72726418,0.00014973,2]
[392858194,1762072237653,-411.27273582,0.00014973,2]
[392858195,1762072237662,-213.80891556,0.00014973,2]
[392858196,1762072237673,-286.19108444,0.00014973,2]
[392858197,1762072237682,-624.64891852,0.00014973,2]